[Event "Late-Titled-Tuesday-Blitz-May-14-2024"]
[Site "Chess.com"]
[Date "2024.05.14"]
[Round "7"]
[White "Hikaru"]
[Black "FabianoCaruana"]
[Result "1-0"]
[WhiteElo "3230"]
[BlackElo "3074"]
[TimeControl "180+1"]
[EndTime "15:17:25 PDT"]
[Termination "Hikaru won by resignation"]

1. d4 {[%clk 0:03:00.9]} 1... Nf6 {[%clk 0:02:58]} 2. Bg5 {[%clk 0:03:00.6]}
2... d5 {[%clk 0:02:55.9]} 3. e3 {[%clk 0:03:00.2]} 3... e6 {[%clk 0:02:55.8]}
4. c4 {[%clk 0:02:59.7]} 4... Be7 {[%clk 0:02:55.6]} 5. Nc3 {[%clk 0:02:58.6]}
5... O-O {[%clk 0:02:55.7]} 6. Rc1 {[%clk 0:02:59.2]} 6... h6 {[%clk 0:02:55.4]}
7. Bh4 {[%clk 0:02:58.7]} 7... Nbd7 {[%clk 0:02:55.7]} 8. cxd5 {[%clk
0:02:58.7]} 8... exd5 {[%clk 0:02:54.9]} 9. Bd3 {[%clk 0:02:58]} 9... c6 {[%clk
0:02:54.7]} 10. Nf3 {[%clk 0:02:51.5]} 10... Re8 {[%clk 0:02:52.6]} 11. O-O
{[%clk 0:02:50.9]} 11... Ne4 {[%clk 0:02:52.1]} 12. Bxe7 {[%clk 0:02:47.1]}
12... Qxe7 {[%clk 0:02:53]} 13. Nd2 {[%clk 0:02:46.2]} 13... Ndf6 {[%clk
0:02:51.5]} 14. Bxe4 {[%clk 0:02:43.9]} 14... dxe4 {[%clk 0:02:50.3]} 15. a3
{[%clk 0:02:40.7]} 15... Bf5 {[%clk 0:02:45.2]} 16. b4 {[%clk 0:02:40.7]} 16...
Rad8 {[%clk 0:02:41.8]} 17. Qb3 {[%clk 0:02:31.1]} 17... h5 {[%clk 0:02:36.4]}
18. Rfe1 {[%clk 0:02:26.7]} 18... h4 {[%clk 0:02:36.5]} 19. h3 {[%clk
0:02:27.1]} 19... Nd5 {[%clk 0:02:32.5]} 20. Nxd5 {[%clk 0:02:24.7]} 20... Rxd5
{[%clk 0:02:33.4]} 21. Rc5 {[%clk 0:02:24.7]} 21... Be6 {[%clk 0:02:20]} 22. Qc2
{[%clk 0:02:20.3]} 22... Rxc5 {[%clk 0:02:04.8]} 23. Qxc5 {[%clk 0:02:14.9]}
23... Qxc5 {[%clk 0:01:58.9]} 24. bxc5 {[%clk 0:02:15.8]} 24... Bd5 {[%clk
0:01:59.2]} 25. Rb1 {[%clk 0:02:13.2]} 25... Rb8 {[%clk 0:01:59.3]} 26. f3
{[%clk 0:02:07]} 26... f5 {[%clk 0:01:48.2]} 27. fxe4 {[%clk 0:02:05.7]} 27...
fxe4 {[%clk 0:01:49.1]} 28. Rb2 {[%clk 0:01:58.6]} 28... b5 {[%clk 0:01:48.2]}
29. cxb6 {[%clk 0:01:58.8]} 29... axb6 {[%clk 0:01:47.9]} 30. Nb1 {[%clk
0:01:59.1]} 30... Kf7 {[%clk 0:01:34]} 31. Nc3 {[%clk 0:01:58.2]} 31... b5
{[%clk 0:01:34]} 32. Rb4 {[%clk 0:01:56.6]} 32... Ra8 {[%clk 0:01:21.4]} 33. a4
{[%clk 0:01:56.5]} 33... bxa4 {[%clk 0:01:21.7]} 34. Rxa4 {[%clk 0:01:55.3]}
34... Rb8 {[%clk 0:01:18.8]} 35. Ra7+ {[%clk 0:01:37.8]} 35... Kf6 {[%clk
0:01:18.7]} 36. Ra6 {[%clk 0:01:37]} 36... Kf7 {[%clk 0:01:17.7]} 37. Ra1 {[%clk
0:01:30]} 37... Rb3 {[%clk 0:01:15.7]} 38. Rc1 {[%clk 0:01:30.1]} 38... g5
{[%clk 0:01:04.9]} 39. Rc2 {[%clk 0:01:29.9]} 39... Kg6 {[%clk 0:00:58.8]} 40.
Kf2 {[%clk 0:01:29.8]} 40... g4 {[%clk 0:00:52.8]} 41. hxg4 {[%clk 0:01:28.2]}
41... Kg5 {[%clk 0:00:53.3]} 42. Ne2 {[%clk 0:01:14.4]} 42... Kxg4 {[%clk
0:00:53.1]} 43. Nf4 {[%clk 0:01:14.9]} 43... Rb1 {[%clk 0:00:48.9]} 44. Ng6
{[%clk 0:01:09.9]} 44... Rh1 {[%clk 0:00:34.1]} 45. Ne5+ {[%clk 0:01:09.3]}
45... Kg5 {[%clk 0:00:34.4]} 46. Rc5 {[%clk 0:01:09.7]} 46... h3 {[%clk
0:00:21]} 47. Nxc6 {[%clk 0:00:47]} 47... Kh4 {[%clk 0:00:18.7]} 48. g3+ {[%clk
0:00:41.5]} 48... Kg4 {[%clk 0:00:16.1]} 49. Ne5+ {[%clk 0:00:41.7]} 49... Kf5
{[%clk 0:00:15.7]} 50. Rxd5 {[%clk 0:00:42.2]} 50... Ra1 {[%clk 0:00:14.2]} 51.
Nf3+ {[%clk 0:00:29.5]} 51... Kf6 {[%clk 0:00:14.1]} 52. g4 {[%clk 0:00:19.9]}
52... exf3 {[%clk 0:00:08.3]} 53. Rh5 {[%clk 0:00:19.7]} 53... Ra2+ {[%clk
0:00:06.4]} 54. Kxf3 {[%clk 0:00:19.5]} 54... h2 {[%clk 0:00:07.3]} 55. e4
{[%clk 0:00:16.5]} 55... Kg6 {[%clk 0:00:06.6]} 56. d5 {[%clk 0:00:17]} 56...
Rd2 {[%clk 0:00:06.2]} 57. Kf4 {[%clk 0:00:17.2]} 57... Rf2+ {[%clk 0:00:05.6]}
58. Ke5 {[%clk 0:00:17.4]} 58... Rg2 {[%clk 0:00:05.9]} 59. d6 {[%clk
0:00:14.8]} 59... Re2 {[%clk 0:00:05.9]} 60. Kd5 {[%clk 0:00:12.9]} 60... Rd2+
{[%clk 0:00:05.9]} 61. Ke6 {[%clk 0:00:13.2]} 1-0

[Event "Late-Titled-Tuesday-Blitz-May-14-2024"]
[Site "Chess.com"]
[Date "2024.05.14"]
[Round "7"]
[White "Walter_White_Poland"]
[Black "jcmesafischer"]
[Result "0-1"]
[WhiteElo "2393"]
[BlackElo "2321"]
[TimeControl "180+1"]
[EndTime "15:17:26 PDT"]
[Termination "jcmesafischer won on time"]

1. e4 {[%clk 0:02:46.1]} 1... c5 {[%clk 0:02:59.3]} 2. Nf3 {[%clk 0:02:45]} 2...
d6 {[%clk 0:02:55.2]} 3. d4 {[%clk 0:02:44.7]} 3... cxd4 {[%clk 0:02:53.3]} 4.
Nxd4 {[%clk 0:02:45.6]} 4... Nf6 {[%clk 0:02:51.3]} 5. Nc3 {[%clk 0:02:45.5]}
5... a6 {[%clk 0:02:51.7]} 6. Bg5 {[%clk 0:02:45]} 6... e6 {[%clk 0:02:52]} 7.
f4 {[%clk 0:02:44.4]} 7... Be7 {[%clk 0:02:52.3]} 8. Qf3 {[%clk 0:02:44.3]} 8...
Qc7 {[%clk 0:02:52.7]} 9. O-O-O {[%clk 0:02:44.2]} 9... Nbd7 {[%clk 0:02:52.2]}
10. Bd3 {[%clk 0:02:43.7]} 10... b5 {[%clk 0:02:49.2]} 11. Rhe1 {[%clk
0:02:40.6]} 11... Bb7 {[%clk 0:02:48.8]} 12. Qg3 {[%clk 0:02:40.4]} 12... b4
{[%clk 0:02:37.3]} 13. Nd5 {[%clk 0:02:39.5]} 13... exd5 {[%clk 0:02:38.2]} 14.
exd5 {[%clk 0:02:39.2]} 14... Kd8 {[%clk 0:02:31.8]} 15. Nc6+ {[%clk 0:02:36.8]}
15... Bxc6 {[%clk 0:02:29.3]} 16. dxc6 {[%clk 0:02:37.7]} 16... Nc5 {[%clk
0:02:29.5]} 17. Bf5 {[%clk 0:02:37.4]} 17... Re8 {[%clk 0:02:11.7]} 18. Bh4
{[%clk 0:02:04.3]} 18... g6 {[%clk 0:01:21.5]} 19. Bd7 {[%clk 0:00:33.6]} 19...
Nfxd7 {[%clk 0:01:11.7]} 20. cxd7 {[%clk 0:00:30.2]} 20... Qxd7 {[%clk
0:01:01.4]} 21. f5 {[%clk 0:00:25]} 21... Rc8 {[%clk 0:00:44.7]} 22. Rxe7 {[%clk
0:00:21.9]} 22... Rxe7 {[%clk 0:00:42.1]} 23. Re1 {[%clk 0:00:21.4]} 23... Ne6
{[%clk 0:00:15.3]} 24. fxe6 {[%clk 0:00:20.6]} 24... fxe6 {[%clk 0:00:16.2]} 25.
Bxe7+ {[%clk 0:00:19]} 25... Qxe7 {[%clk 0:00:12.9]} 26. Qg4 {[%clk 0:00:17.6]}
26... Kd7 {[%clk 0:00:08.7]} 27. Qd4 {[%clk 0:00:16.5]} 27... Qg5+ {[%clk
0:00:06.9]} 28. Kb1 {[%clk 0:00:15.9]} 28... Qxg2 {[%clk 0:00:03.1]} 29. Qg7+
{[%clk 0:00:15.6]} 29... Kc6 {[%clk 0:00:03.5]} 30. b3 {[%clk 0:00:13.6]} 30...
Rc7 {[%clk 0:00:03.1]} 31. Qd4 {[%clk 0:00:12.5]} 31... Kd7 {[%clk 0:00:03.5]}
32. Qxb4 {[%clk 0:00:11.4]} 32... Qxc2+ {[%clk 0:00:02.8]} 33. Ka1 {[%clk
0:00:10.7]} 33... Qc3+ {[%clk 0:00:03.7]} 34. Qxc3 {[%clk 0:00:10.7]} 34... Rxc3
{[%clk 0:00:04.6]} 35. Rf1 {[%clk 0:00:10.7]} 35... Ke7 {[%clk 0:00:04.1]} 36.
Kb2 {[%clk 0:00:09.8]} 36... Rh3 {[%clk 0:00:04.4]} 37. Rf2 {[%clk 0:00:10.2]}
37... e5 {[%clk 0:00:05.3]} 38. Rc2 {[%clk 0:00:10.2]} 38... e4 {[%clk
0:00:04.7]} 39. Rc7+ {[%clk 0:00:10.4]} 39... Ke6 {[%clk 0:00:05.3]} 40. Kc2
{[%clk 0:00:09.6]} 40... Rxh2+ {[%clk 0:00:05.5]} 41. Kc3 {[%clk 0:00:09.5]}
41... d5 {[%clk 0:00:05.6]} 42. Ra7 {[%clk 0:00:07.7]} 42... Ke5 {[%clk
0:00:04.6]} 43. Rxa6 {[%clk 0:00:06.4]} 43... d4+ {[%clk 0:00:04.6]} 44. Kc4
{[%clk 0:00:06.7]} 44... Rb2 {[%clk 0:00:04.8]} 45. Ra5+ {[%clk 0:00:06.2]}
45... Kf4 {[%clk 0:00:04.9]} 46. Kxd4 {[%clk 0:00:06.6]} 46... Rd2+ {[%clk
0:00:05.6]} 47. Kc3 {[%clk 0:00:06.5]} 47... e3 {[%clk 0:00:06.5]} 48. Ra7
{[%clk 0:00:04.7]} 48... Rd6 {[%clk 0:00:05.3]} 49. Rf7+ {[%clk 0:00:03.9]}
49... Ke4 {[%clk 0:00:04]} 50. Re7+ {[%clk 0:00:03.2]} 50... Kf3 {[%clk
0:00:04.5]} 51. Rxh7 {[%clk 0:00:02]} 51... e2 {[%clk 0:00:04.4]} 52. Re7 {[%clk
0:00:01.3]} 52... g5 {[%clk 0:00:03.7]} 53. b4 {[%clk 0:00:01.2]} 53... Rd1
{[%clk 0:00:03.9]} 54. b5 {[%clk 0:00:00.5]} 54... e1=Q+ {[%clk 0:00:04.8]} 0-1

[Event "Late-Titled-Tuesday-Blitz-May-14-2024"]
[Site "Chess.com"]
[Date "2024.05.14"]
[Round "7"]
[White "Nf3c5"]
[Black "Chessdude1987"]
[Result "0-1"]
[WhiteElo "2549"]
[BlackElo "2392"]
[TimeControl "180+1"]
[EndTime "15:17:27 PDT"]
[Termination "Chessdude1987 won by checkmate"]

1. d4 {[%clk 0:02:54.7]} 1... e6 {[%clk 0:03:00.3]} 2. Nf3 {[%clk 0:02:54.4]}
2... f5 {[%clk 0:03:00.8]} 3. g3 {[%clk 0:02:45.6]} 3... Nf6 {[%clk 0:03:01.1]}
4. Bg2 {[%clk 0:02:45.8]} 4... Be7 {[%clk 0:03:01.7]} 5. O-O {[%clk 0:02:44.9]}
5... O-O {[%clk 0:03:02.3]} 6. b3 {[%clk 0:02:44.9]} 6... d6 {[%clk 0:03:02.9]}
7. Bb2 {[%clk 0:02:44.9]} 7... Ne4 {[%clk 0:03:03.5]} 8. c4 {[%clk 0:02:42.3]}
8... Bf6 {[%clk 0:03:03.6]} 9. Qc2 {[%clk 0:02:41.9]} 9... Qe7 {[%clk
0:03:01.5]} 10. Nbd2 {[%clk 0:02:22.2]} 10... Nxd2 {[%clk 0:03:01.2]} 11. Nxd2
{[%clk 0:02:19.1]} 11... e5 {[%clk 0:03:01.3]} 12. c5 {[%clk 0:01:53.1]} 12...
exd4 {[%clk 0:02:49.2]} 13. cxd6 {[%clk 0:01:50.1]} 13... cxd6 {[%clk
0:02:49.4]} 14. Bxd4 {[%clk 0:01:39.9]} 14... Bxd4 {[%clk 0:02:38.6]} 15. Qc4+
{[%clk 0:01:37.6]} 15... Be6 {[%clk 0:02:36.9]} 16. Qxd4 {[%clk 0:01:38.5]}
16... Nc6 {[%clk 0:02:36.8]} 17. Qb2 {[%clk 0:01:34.6]} 17... Ne5 {[%clk
0:02:24.8]} 18. Nf3 {[%clk 0:01:30.6]} 18... Bd5 {[%clk 0:02:11.8]} 19. Nd4
{[%clk 0:01:08.6]} 19... Bxg2 {[%clk 0:02:08.6]} 20. Kxg2 {[%clk 0:01:09.5]}
20... f4 {[%clk 0:02:02.5]} 21. f3 {[%clk 0:01:06]} 21... Rae8 {[%clk
0:01:48.3]} 22. Rae1 {[%clk 0:01:05]} 22... Nc6 {[%clk 0:01:42.7]} 23. Nxc6
{[%clk 0:01:02.8]} 23... bxc6 {[%clk 0:01:42.7]} 24. Qd4 {[%clk 0:01:03.3]}
24... Qe5 {[%clk 0:01:26.9]} 25. Qc4+ {[%clk 0:01:00.5]} 25... d5 {[%clk
0:01:12.9]} 26. Qxc6 {[%clk 0:00:57.3]} 26... d4 {[%clk 0:01:12.4]} 27. Qc4+
{[%clk 0:00:46.5]} 27... Kh8 {[%clk 0:01:11.7]} 28. Rd1 {[%clk 0:00:36.8]} 28...
Qxe2+ {[%clk 0:01:06.2]} 29. Qxe2 {[%clk 0:00:35.8]} 29... Rxe2+ {[%clk
0:01:06.1]} 30. Rf2 {[%clk 0:00:36.7]} 30... Rxf2+ {[%clk 0:00:51.8]} 31. Kxf2
{[%clk 0:00:37.6]} 31... fxg3+ {[%clk 0:00:49.7]} 32. hxg3 {[%clk 0:00:38.5]}
32... Rd8 {[%clk 0:00:48.4]} 33. Ke2 {[%clk 0:00:37.8]} 33... Kg8 {[%clk
0:00:45.2]} 34. Kd3 {[%clk 0:00:36.2]} 34... Rd6 {[%clk 0:00:42.1]} 35. Rc1
{[%clk 0:00:33]} 35... h5 {[%clk 0:00:41]} 36. Rc4 {[%clk 0:00:31.8]} 36... Rg6
{[%clk 0:00:38.6]} 37. Kxd4 {[%clk 0:00:23.3]} 37... Rxg3 {[%clk 0:00:37.3]} 38.
Ke3 {[%clk 0:00:23.2]} 38... g5 {[%clk 0:00:34.8]} 39. Ra4 {[%clk 0:00:22.3]}
39... g4 {[%clk 0:00:32.2]} 40. Kf4 {[%clk 0:00:18.8]} 40... Rxf3+ {[%clk
0:00:31.6]} 41. Kg5 {[%clk 0:00:19.5]} 41... Rh3 {[%clk 0:00:24.2]} 42. Kg6
{[%clk 0:00:18.9]} 42... g3 {[%clk 0:00:23.2]} 43. Rxa7 {[%clk 0:00:18.2]} 43...
Kf8 {[%clk 0:00:23.1]} 44. Rf7+ {[%clk 0:00:15.5]} 44... Ke8 {[%clk 0:00:23]}
45. Rf1 {[%clk 0:00:15.1]} 45... h4 {[%clk 0:00:21.1]} 46. Kg5 {[%clk 0:00:15]}
46... g2 {[%clk 0:00:20.3]} 47. Rg1 {[%clk 0:00:13.8]} 47... Rh2 {[%clk
0:00:14.3]} 48. Kg4 {[%clk 0:00:14]} 48... h3 {[%clk 0:00:14.3]} 49. Kg3 {[%clk
0:00:10.6]} 49... Rh1 {[%clk 0:00:14.1]} 50. Kf2 {[%clk 0:00:11.3]} 50... Rxg1
{[%clk 0:00:07.6]} 51. Kxg1 {[%clk 0:00:11.4]} 51... Kf7 {[%clk 0:00:05.9]} 52.
a4 {[%clk 0:00:11.6]} 52... Kg6 {[%clk 0:00:06.2]} 53. a5 {[%clk 0:00:12.2]}
53... Kg5 {[%clk 0:00:06.6]} 54. a6 {[%clk 0:00:10.4]} 54... Kg4 {[%clk
0:00:06.8]} 55. Kh2 {[%clk 0:00:08.9]} 55... Kf3 {[%clk 0:00:06.3]} 56. a7
{[%clk 0:00:08.7]} 56... Kf2 {[%clk 0:00:06.1]} 57. a8=Q {[%clk 0:00:06.6]}
57... g1=Q+ {[%clk 0:00:06.2]} 58. Kxh3 {[%clk 0:00:07.5]} 58... Qg3# {[%clk
0:00:06.4]} 0-1

[Event "Late-Titled-Tuesday-Blitz-May-14-2024"]
[Site "Chess.com"]
[Date "2024.05.14"]
[Round "7"]
[White "The_Machine04"]
[Black "MyDream003"]
[Result "0-1"]
[WhiteElo "2664"]
[BlackElo "2841"]
[TimeControl "180+1"]
[EndTime "15:17:29 PDT"]
[Termination "MyDream003 won by checkmate"]

1. d4 {[%clk 0:03:00.9]} 1... Nf6 {[%clk 0:02:59.5]} 2. Nf3 {[%clk 0:02:56.4]}
2... d5 {[%clk 0:02:59.3]} 3. e3 {[%clk 0:02:56.5]} 3... c5 {[%clk 0:02:58.2]}
4. Nbd2 {[%clk 0:02:55.9]} 4... Nc6 {[%clk 0:02:58]} 5. c3 {[%clk 0:02:55.5]}
5... Bg4 {[%clk 0:02:52.7]} 6. dxc5 {[%clk 0:02:55.1]} 6... a5 {[%clk
0:02:52.3]} 7. Bb5 {[%clk 0:02:54.6]} 7... e6 {[%clk 0:02:51.1]} 8. b4 {[%clk
0:02:54.3]} 8... Nd7 {[%clk 0:02:47.1]} 9. Bxc6 {[%clk 0:02:48.4]} 9... bxc6
{[%clk 0:02:46.9]} 10. h3 {[%clk 0:02:44.6]} 10... Bh5 {[%clk 0:02:46.2]} 11. a3
{[%clk 0:02:37.1]} 11... Be7 {[%clk 0:02:44]} 12. Bb2 {[%clk 0:02:34.3]} 12...
O-O {[%clk 0:02:41.5]} 13. O-O {[%clk 0:02:30]} 13... Qb8 {[%clk 0:02:33.3]} 14.
Qc1 {[%clk 0:02:21.1]} 14... Bg6 {[%clk 0:02:25.9]} 15. Nb3 {[%clk 0:02:07.3]}
15... e5 {[%clk 0:02:16.1]} 16. Nxa5 {[%clk 0:02:04.2]} 16... Rxa5 {[%clk
0:02:16]} 17. bxa5 {[%clk 0:02:03.6]} 17... Nxc5 {[%clk 0:02:16.7]} 18. Ra2
{[%clk 0:01:41.2]} 18... Bd3 {[%clk 0:02:10.4]} 19. c4 {[%clk 0:01:21.2]} 19...
Qb3 {[%clk 0:01:34.4]} 20. Ra1 {[%clk 0:01:05.1]} 20... Bxf1 {[%clk 0:01:30.2]}
21. cxd5 {[%clk 0:00:54.4]} 21... Ba6 {[%clk 0:01:20.3]} 22. Bxe5 {[%clk
0:00:38.8]} 22... Qxd5 {[%clk 0:01:07.1]} 23. Qc3 {[%clk 0:00:29.2]} 23... f6
{[%clk 0:01:05.5]} 24. Bf4 {[%clk 0:00:20.6]} 24... Ne6 {[%clk 0:00:59.1]} 25.
Bg3 {[%clk 0:00:20.3]} 25... Qc5 {[%clk 0:00:50.7]} 26. Qb3 {[%clk 0:00:19.4]}
26... Qc4 {[%clk 0:00:50.9]} 27. Qxc4 {[%clk 0:00:18.2]} 27... Bxc4 {[%clk
0:00:50.9]} 28. Rc1 {[%clk 0:00:18.8]} 28... Bb5 {[%clk 0:00:50.4]} 29. a4
{[%clk 0:00:14.9]} 29... Bxa4 {[%clk 0:00:50]} 30. Ra1 {[%clk 0:00:14.6]} 30...
Bb5 {[%clk 0:00:39.1]} 31. a6 {[%clk 0:00:14.7]} 31... Ra8 {[%clk 0:00:37.9]}
32. a7 {[%clk 0:00:15]} 32... Bc5 {[%clk 0:00:37.2]} 33. Bb8 {[%clk 0:00:14.9]}
33... Kf7 {[%clk 0:00:34.1]} 34. Nd2 {[%clk 0:00:14.3]} 34... f5 {[%clk
0:00:31.6]} 35. Nb3 {[%clk 0:00:13.7]} 35... Bb6 {[%clk 0:00:31.9]} 36. Na5
{[%clk 0:00:03.3]} 36... Bxa7 {[%clk 0:00:26.9]} 37. Nxc6 {[%clk 0:00:02.5]}
37... Bxc6 {[%clk 0:00:27.2]} 38. Bxa7 {[%clk 0:00:02]} 38... Bb7 {[%clk
0:00:21.8]} 39. Bd4 {[%clk 0:00:01.3]} 39... Nxd4 {[%clk 0:00:20.7]} 40. Rb1
{[%clk 0:00:00.4]} 40... Be4 {[%clk 0:00:16.7]} 41. Rc1 {[%clk 0:00:00.5]} 41...
Ne2+ {[%clk 0:00:16.7]} 42. Kh2 {[%clk 0:00:00.9]} 42... Nxc1 {[%clk 0:00:17.6]}
43. Kg3 {[%clk 0:00:01.8]} 43... Ne2+ {[%clk 0:00:17.4]} 44. Kh4 {[%clk
0:00:02.4]} 44... Kg6 {[%clk 0:00:15.7]} 45. f4 {[%clk 0:00:03.3]} 45... Kh6
{[%clk 0:00:15.9]} 46. g4 {[%clk 0:00:04.2]} 46... fxg4 {[%clk 0:00:15.8]} 47.
hxg4 {[%clk 0:00:04.5]} 47... g5+ {[%clk 0:00:16.7]} 48. fxg5+ {[%clk
0:00:04.9]} 48... Kg6 {[%clk 0:00:17.6]} 49. Kh3 {[%clk 0:00:05.4]} 49... Kxg5
{[%clk 0:00:18.1]} 50. Kh2 {[%clk 0:00:06]} 50... Ra3 {[%clk 0:00:14.3]} 51. Kh3
{[%clk 0:00:06.9]} 51... Rxe3+ {[%clk 0:00:14.2]} 52. Kh2 {[%clk 0:00:07.8]}
52... Nf4 {[%clk 0:00:14.3]} 53. Kg1 {[%clk 0:00:07.8]} 53... Re2 {[%clk
0:00:14.5]} 54. Kf1 {[%clk 0:00:08.3]} 54... Bf3 {[%clk 0:00:14.8]} 55. Kg1
{[%clk 0:00:09]} 55... Kxg4 {[%clk 0:00:14.6]} 56. Kf1 {[%clk 0:00:09.9]} 56...
Kg3 {[%clk 0:00:15.1]} 57. Kg1 {[%clk 0:00:10.6]} 57... Re1# {[%clk 0:00:16]}
0-1

[Event "Late-Titled-Tuesday-Blitz-May-14-2024"]
[Site "Chess.com"]
[Date "2024.05.14"]
[Round "7"]
[White "chenxiaoyuer"]
[Black "NikitaShnadrygin"]
[Result "1-0"]
[WhiteElo "2899"]
[BlackElo "2761"]
[TimeControl "180+1"]
[EndTime "15:17:32 PDT"]
[Termination "chenxiaoyuer won on time"]

1. e4 {[%clk 0:03:00.9]} 1... c5 {[%clk 0:03:00.2]} 2. Nf3 {[%clk 0:03:01.2]}
2... e6 {[%clk 0:03:00.6]} 3. d4 {[%clk 0:03:01.7]} 3... cxd4 {[%clk 0:03:01.5]}
4. Nxd4 {[%clk 0:03:02.2]} 4... Nf6 {[%clk 0:03:02.4]} 5. Nc3 {[%clk 0:03:01.9]}
5... Nc6 {[%clk 0:03:03]} 6. Ndb5 {[%clk 0:03:01.3]} 6... Bb4 {[%clk 0:03:01.7]}
7. a3 {[%clk 0:02:59.3]} 7... Bxc3+ {[%clk 0:03:02]} 8. Nxc3 {[%clk 0:03:00.2]}
8... d5 {[%clk 0:03:02.7]} 9. exd5 {[%clk 0:03:00.2]} 9... exd5 {[%clk
0:03:03.6]} 10. Bd3 {[%clk 0:03:00.7]} 10... O-O {[%clk 0:03:04.2]} 11. O-O
{[%clk 0:03:01.3]} 11... Bg4 {[%clk 0:03:04.8]} 12. f3 {[%clk 0:03:01.3]} 12...
Bh5 {[%clk 0:03:05.4]} 13. Ne2 {[%clk 0:03:00.7]} 13... Bg6 {[%clk 0:02:46.9]}
14. Bxg6 {[%clk 0:02:43.7]} 14... hxg6 {[%clk 0:02:45.8]} 15. Be3 {[%clk
0:02:41.8]} 15... Re8 {[%clk 0:02:46]} 16. Bf2 {[%clk 0:02:40]} 16... Rc8 {[%clk
0:02:39]} 17. Qd2 {[%clk 0:02:34.6]} 17... Ne5 {[%clk 0:02:35.3]} 18. b3 {[%clk
0:02:32.3]} 18... Qc7 {[%clk 0:02:31.8]} 19. Nd4 {[%clk 0:02:27.7]} 19... a6
{[%clk 0:02:22.4]} 20. Rfe1 {[%clk 0:02:26.5]} 20... Nc6 {[%clk 0:02:20.5]} 21.
Rxe8+ {[%clk 0:02:21.9]} 21... Rxe8 {[%clk 0:02:21.4]} 22. Nxc6 {[%clk
0:02:19.2]} 22... bxc6 {[%clk 0:02:17.1]} 23. Re1 {[%clk 0:02:14.2]} 23... Qc8
{[%clk 0:02:15.9]} 24. b4 {[%clk 0:01:54.9]} 24... Rxe1+ {[%clk 0:02:10.1]} 25.
Qxe1 {[%clk 0:01:55.8]} 25... Qe6 {[%clk 0:01:24.6]} 26. Qf1 {[%clk 0:01:53.2]}
26... Qc8 {[%clk 0:01:20.5]} 27. Bd4 {[%clk 0:01:51]} 27... Ne8 {[%clk
0:01:20.6]} 28. Bc5 {[%clk 0:01:43.8]} 28... Nc7 {[%clk 0:01:19.8]} 29. Qd3
{[%clk 0:01:38.6]} 29... Ne6 {[%clk 0:01:19.6]} 30. Be3 {[%clk 0:01:39.1]} 30...
Qb7 {[%clk 0:01:19.2]} 31. g4 {[%clk 0:01:32.4]} 31... Qb5 {[%clk 0:01:19]} 32.
Qd2 {[%clk 0:01:24.3]} 32... Qc4 {[%clk 0:01:15.2]} 33. Qd3 {[%clk 0:01:12.9]}
33... Qxd3 {[%clk 0:00:59.4]} 34. cxd3 {[%clk 0:01:13.8]} 34... Kf8 {[%clk
0:00:45.6]} 35. Kf2 {[%clk 0:01:13]} 35... Ke7 {[%clk 0:00:46.2]} 36. f4 {[%clk
0:01:07.7]} 36... f5 {[%clk 0:00:44.6]} 37. h3 {[%clk 0:01:07.5]} 37... Kd6
{[%clk 0:00:44.7]} 38. Ke2 {[%clk 0:01:07.3]} 38... d4 {[%clk 0:00:42.4]} 39.
Bd2 {[%clk 0:01:07.2]} 39... Kd5 {[%clk 0:00:43]} 40. Kd1 {[%clk 0:01:05.8]}
40... c5 {[%clk 0:00:42.9]} 41. bxc5 {[%clk 0:01:03.6]} 41... Nxc5 {[%clk
0:00:42.4]} 42. Kc2 {[%clk 0:01:03.2]} 42... Ne6 {[%clk 0:00:39.8]} 43. Kd1
{[%clk 0:01:02.2]} 43... Nc5 {[%clk 0:00:37.6]} 44. Kc2 {[%clk 0:01:02.6]} 44...
Ne6 {[%clk 0:00:37.7]} 45. Kd1 {[%clk 0:01:03]} 45... Kc6 {[%clk 0:00:33.1]} 46.
Kc2 {[%clk 0:01:02.8]} 46... Kb5 {[%clk 0:00:32.4]} 47. Kb3 {[%clk 0:00:54.8]}
47... Nc5+ {[%clk 0:00:32.1]} 48. Kc2 {[%clk 0:00:55.4]} 48... Ka4 {[%clk
0:00:32.6]} 49. Bb4 {[%clk 0:00:55.6]} 49... Ne6 {[%clk 0:00:33.1]} 50. Bd6
{[%clk 0:00:55.8]} 50... g5 {[%clk 0:00:14.4]} 51. fxg5 {[%clk 0:00:51]} 51...
Nxg5 {[%clk 0:00:14.3]} 52. gxf5 {[%clk 0:00:49.8]} 52... Nxh3 {[%clk
0:00:14.1]} 53. Be5 {[%clk 0:00:50.5]} 53... Kxa3 {[%clk 0:00:09.5]} 54. Bxg7
{[%clk 0:00:45.8]} 54... Ng5 {[%clk 0:00:08.5]} 55. Bxd4 {[%clk 0:00:45.5]}
55... Kb4 {[%clk 0:00:08.6]} 56. Bf6 {[%clk 0:00:43.9]} 56... Nf7 {[%clk
0:00:09.2]} 57. Be7+ {[%clk 0:00:43]} 57... Kb5 {[%clk 0:00:09.4]} 58. Kc3
{[%clk 0:00:43.2]} 58... Kc6 {[%clk 0:00:08.5]} 59. Kd4 {[%clk 0:00:41.9]} 59...
Nh6 {[%clk 0:00:08.8]} 60. Ke4 {[%clk 0:00:40.5]} 60... Kd7 {[%clk 0:00:08.1]}
61. Ba3 {[%clk 0:00:40.1]} 61... Nf7 {[%clk 0:00:08.5]} 62. d4 {[%clk
0:00:40.5]} 62... Kc6 {[%clk 0:00:08.9]} 63. Be7 {[%clk 0:00:39.5]} 63... Kd7
{[%clk 0:00:09.2]} 64. f6 {[%clk 0:00:40]} 64... a5 {[%clk 0:00:08.6]} 65. Kf5
{[%clk 0:00:39.2]} 65... a4 {[%clk 0:00:06.7]} 66. Kg6 {[%clk 0:00:39.6]} 66...
Ke8 {[%clk 0:00:02.3]} 67. d5 {[%clk 0:00:39.8]} 67... Ne5+ {[%clk 0:00:02.5]}
68. Kg7 {[%clk 0:00:40.3]} 68... Kd7 {[%clk 0:00:02.1]} 69. f7 {[%clk
0:00:38.3]} 69... Nxf7 {[%clk 0:00:01.7]} 70. Kxf7 {[%clk 0:00:39.2]} 70... Kc7
{[%clk 0:00:02.1]} 71. Ba3 {[%clk 0:00:40.1]} 1-0